bitfinex/quotes_BTCUSD_20250421
["timestamp","ask_amount","ask_price","bid_price","bid_amount"]
[1745263896416,0.80386214,87232.0,87231.0,0.00013637]
[1745263897852,1.21976214,87232.0,87231.0,0.00013637]
[1745263898463,1.34905504,87232.0,87231.0,0.00013637]
[1745263899349,1.23530299,87232.0,87231.0,0.00013637]
[1745263899554,1.22076214,87232.0,87231.0,0.00013637]
[1745263900001,1.21976214,87232.0,87231.0,0.00013637]
[1745263900205,1.22076214,87232.0,87231.0,0.00013637]
[1745263900441,1.21976214,87232.0,87231.0,0.00013637]
[1745263900946,1.12366214,87232.0,87231.0,0.00013637]
[1745263901149,0.77366214,87232.0,87231.0,0.00013637]
[1745263901567,1.11366214,87232.0,87231.0,0.00013637]
[1745263901997,1.11066214,87232.0,87231.0,0.00013637]
[1745263903198,1.11166214,87232.0,87231.0,0.00013637]
[1745263903351,0.88238848,87232.0,87231.0,0.00013637]
[1745263903550,0.88238848,87232.0,87231.0,0.32601265]
[1745263903551,0.01273254,87232.0,87231.0,0.32601265]
[1745263903872,0.01273254,87232.0,87231.0,0.32701265]
[1745263904276,0.002,87232.0,87231.0,0.33869727]
[1745263904435,0.22921171,87256.0,87252.0,0.22922016]
[1745263904436,0.01146066,87255.0,87252.0,0.22922016]
[1745263904644,0.11375594,87254.0,87252.0,0.22922016]
[1745263904851,0.11375594,87254.0,87253.0,0.22921847]
[1745263905432,1e-08,87256.0,87255.0,0.22921322]
[1745263905579,1e-08,87256.0,87255.0,0.23150506]
[1745263905797,1e-08,87256.0,87255.0,0.22921322]
[1745263907009,1e-08,87256.0,87255.0,0.231505]
[1745263908036,1e-08,87256.0,87255.0,0.22921322]
[1745263908919,1e-08,87256.0,87255.0,0.231505]
[1745263913978,1e-08,87256.0,87255.0,0.22921322]
[1745263915749,1e-08,87256.0,87255.0,0.231505]
[1745263921437,1e-08,87256.0,87255.0,0.22921322]
[1745263921649,1e-08,87256.0,87250.0,0.22922443]
[1745263921650,0.11375595,87256.0,87244.0,0.0114621]
[1745263921887,0.11375594,87255.0,87251.0,0.01146118]
[1745263922120,0.11375594,87255.0,87254.0,0.22921585]
[1745263922564,1e-08,87256.0,87255.0,0.22921322]
[1745263931352,1e-08,87256.0,87253.0,0.24067916]
[1745263931569,1e-08,87256.0,87255.0,0.22921322]
[1745263932410,0.18718509,87256.0,87231.0,0.01272188]
[1745263932648,0.18718509,87256.0,87241.0,0.0114625]
[1745263932649,0.24069845,87247.0,87241.0,0.0114625]
[1745263932858,0.01146184,87246.0,87243.0,0.229244]
[1745263933062,0.12521791,87245.0,87242.0,0.01146236]
[1745263933726,0.22924212,87244.0,87242.0,0.001]
[1745263934042,0.22926314,87236.0,87235.0,0.0456]
[1745263934301,0.22926314,87236.0,87231.0,0.00113637]
[1745263934302,0.22927353,87233.0,87231.0,0.00113637]
[1745263934845,0.12521909,87236.0,87232.0,0.01146368]
[1745263935050,0.34302219,87235.0,87232.0,0.01146368]
[1745263935403,0.11375594,87235.0,87233.0,0.22927023]
[1745263935612,0.02143205,87239.0,87238.0,0.22925789]
[1745263935820,0.02217511,87241.0,87237.0,0.24072354]
[1745263936160,0.01146315,87236.0,87232.0,0.01146368]
[1745263936566,0.01146302,87237.0,87234.0,0.24072984]
[1745263936769,0.11375594,87237.0,87235.0,0.22926523]
[1745263940958,0.10592,87244.0,87243.0,0.22924475]
[1745263941150,0.21967594,87244.0,87241.0,0.22924753]
[1745263941462,0.11375594,87243.0,87241.0,0.22924753]
[1745263942445,0.11375594,87243.0,87237.0,0.01146302]
[1745263942666,0.11375594,87243.0,87242.0,0.22924738]
[1745263942885,0.11475594,87243.0,87242.0,0.22924738]
[1745263943617,0.11375594,87243.0,87242.0,0.22924738]
[1745263944537,0.10592,87244.0,87243.0,0.22924475]
[1745263944911,0.01071261,87251.0,87250.0,0.22922636]
[1745263945147,0.57042855,87251.0,87250.0,0.22922636]
[1745263945615,0.12446855,87251.0,87250.0,0.22922636]
[1745263945838,0.01071261,87255.0,87254.0,0.22921585]
[1745263946244,0.01071261,87255.0,87254.0,0.23150784]
[1745263946468,0.01071261,87255.0,87254.0,0.28060784]
[1745263946668,0.01071261,87255.0,87254.0,0.27831585]
[1745263947287,1e-08,87256.0,87255.0,0.22921322]
[1745263947495,1e-08,87256.0,87255.0,0.23150493]
[1745263948737,1e-08,87256.0,87255.0,0.23250493]
[1745263948948,1e-08,87256.0,87255.0,0.23021322]
[1745263950079,1e-08,87256.0,87255.0,0.23121322]
[1745263954698,1e-08,87256.0,87255.0,0.23350493]
[1745263957319,1e-08,87256.0,87255.0,0.23121322]
[1745263959968,1e-08,87256.0,87255.0,0.23021322]
[1745263961199,1e-08,87256.0,87255.0,0.22921322]
[1745263961605,0.12521647,87256.0,87253.0,0.22921779]
[1745263961817,0.01146184,87246.0,87242.0,0.22924738]
[1745263962031,0.11375594,87246.0,87245.0,0.22923949]
[1745263962244,0.11375594,87246.0,87243.0,0.22924258]
[1745263962444,0.12521778,87246.0,87243.0,0.22924258]
[1745263962655,0.0114621,87244.0,87241.0,0.22924974]
[1745263963022,0.0114621,87244.0,87242.0,0.001]
[1745263963861,0.11375594,87246.0,87243.0,0.22924475]
[1745263964037,0.11375594,87246.0,87245.0,0.22923949]
[1745263964218,0.11375594,87246.0,87244.0,0.22924084]
[1745263964418,0.11375594,87246.0,87245.0,0.22923949]
[1745263965028,0.11375594,87246.0,87243.0,0.01146223]
[1745263965256,0.11375594,87246.0,87245.0,0.22923949]
[1745263966576,0.10532,87253.0,87250.0,0.01146131]
[1745263966787,0.23053686,87253.0,87250.0,0.01146131]
[1745263967019,0.45975755,87253.0,87250.0,0.22922614]
[1745263967431,0.01146144,87249.0,87245.0,0.22923692]
[1745263967578,0.24068491,87251.0,87248.0,0.22922935]
[1745263967779,0.23053686,87253.0,87249.0,0.22922898]
[1745263968581,0.23053686,87253.0,87248.0,0.24068828]
[1745263968789,0.22922898,87249.0,87246.0,0.22923566]
[1745263968996,0.23053686,87253.0,87246.0,0.01146184]
[1745263969201,0.45976032,87253.0,87249.0,0.22922822]
[1745263969652,0.21907594,87253.0,87249.0,0.22922898]
[1745263969862,0.23053686,87253.0,87250.0,0.22922636]
[1745263970364,0.45975604,87253.0,87250.0,0.22922636]
[1745263970566,0.23053686,87253.0,87251.0,0.22922206]
[1745263970796,0.45975547,87253.0,87251.0,0.22922206]
[1745263971131,0.23053686,87253.0,87249.0,0.22922898]
[1745263971274,0.45975548,87253.0,87250.0,0.22922426]
[1745263972116,0.24069056,87249.0,87247.0,0.22923384]
[1745263972363,0.01146131,87250.0,87247.0,0.22923349]
[1745263972572,0.24068491,87251.0,87249.0,0.22922898]
[1745263973913,0.01146131,87250.0,87247.0,0.22923217]
[1745263974294,0.01146131,87250.0,87247.0,0.22923185]
[1745263975239,0.01146131,87250.0,87248.0,0.22923005]
[1745263975353,0.24068491,87251.0,87248.0,0.22923005]
[1745263976158,0.01146144,87249.0,87247.0,0.22923352]
[1745263976305,0.01146131,87250.0,87247.0,0.22923352]
[1745263976515,0.24068988,87251.0,87248.0,0.22923073]
[1745263976892,0.24068237,87252.0,87249.0,0.22922891]
[1745263977467,0.24068821,87250.0,87246.0,0.2292367]
[1745263977667,0.24068821,87250.0,87243.0,0.22924475]
[1745263977668,0.240696,87247.0,87243.0,0.22924475]
[1745263977875,0.35445194,87247.0,87243.0,0.22924475]
[1745263978099,0.01146184,87246.0,87244.0,0.22924176]
[1745263978644,0.35445194,87247.0,87245.0,0.22923932]
[1745263979575,0.12521765,87247.0,87245.0,0.22923932]
[1745263980008,0.11375594,87247.0,87246.0,0.22923687]
[1745263980403,0.24069871,87246.0,87244.0,0.22924125]
[1745263980648,0.3544524,87247.0,87244.0,0.22924125]
[1745263980808,0.22923753,87246.0,87244.0,0.22924125]
[1745263981037,0.22923753,87246.0,87243.0,0.22924021]
[1745263981038,0.01146184,87246.0,87243.0,0.22924021]
[1745263981236,0.3544524,87247.0,87243.0,0.22924021]
[1745263981386,0.11375594,87247.0,87245.0,0.22923761]
[1745263982195,0.24071513,87241.0,87224.0,0.0457]
[1745263982425,0.01146328,87235.0,87229.0,0.24074325]
[1745263982613,0.12521936,87234.0,87229.0,0.24074325]
[1745263982824,0.22927103,87233.0,87230.0,0.22927821]
[1745263983039,0.34302697,87233.0,87230.0,0.22927821]
[1745263983284,0.11375594,87233.0,87232.0,0.22927366]
[1745263983487,0.11375594,87233.0,87231.0,0.22941062]
[1745263983689,0.22927366,87232.0,87231.0,0.00013637]
[1745263983886,0.11375594,87233.0,87231.0,0.00013637]
[1745263984101,0.22927366,87232.0,87231.0,0.00013637]
[1745263984338,0.11375594,87233.0,87231.0,0.2294103]
[1745263984972,0.11375594,87233.0,87232.0,0.22927366]
[1745263985204,0.00867559,87243.0,87237.0,0.01146302]
[1745263985416,0.01071261,87244.0,87243.0,0.22924475]
[1745263987358,0.24069615,87247.0,87244.0,0.22923996]
[1745263987534,0.35445209,87247.0,87244.0,0.22923996]
[1745263988328,0.34299038,87247.0,87244.0,0.22923996]
[1745263988495,0.11375594,87247.0,87245.0,0.2292378]
[1745263988699,0.12521765,87247.0,87242.0,0.22924497]
[1745263988957,0.01146184,87246.0,87243.0,0.22924371]
[1745263989525,0.24070015,87246.0,87243.0,0.22924371]
[1745263989734,0.01146184,87246.0,87244.0,0.22924101]
[1745263990100,0.35445225,87247.0,87245.0,0.22923949]
[1745263990433,0.12521765,87247.0,87245.0,0.22923819]
[1745263990677,0.01072494,87246.0,87245.0,0.22923949]
[1745263991852,0.24070388,87245.0,87242.0,0.22924517]
[1745263992058,0.24070388,87245.0,87207.0,0.1424647]
[1745263992059,0.24071986,87239.0,87233.0,0.24073457]
[1745263992264,0.12521883,87238.0,87235.0,0.2292657]
[1745263992487,0.2407239,87237.0,87232.0,0.01146368]
[1745263992689,0.11375594,87236.0,87234.0,0.22926603]
[1745263992900,0.11375594,87236.0,87235.0,0.22926577]
[1745263993105,0.0114625,87241.0,87235.0,0.22926577]
[1745263993106,0.01146223,87243.0,87238.0,0.01146289]
[1745263993313,0.35446569,87242.0,87238.0,0.24071558]
[1745263993520,0.11375594,87242.0,87239.0,0.22925266]
[1745263993721,0.1252183,87242.0,87239.0,0.22925266]
[1745263993929,0.25143917,87241.0,87237.0,0.22925829]
[1745263994168,0.12448241,87241.0,87239.0,0.22925526]
[1745263994372,0.01072647,87241.0,87240.0,0.22925263]
[1745263995030,0.12448241,87241.0,87239.0,0.22925287]
[1745263995454,0.12448241,87241.0,87240.0,0.22925263]
[1745264003535,0.01072647,87241.0,87240.0,0.22925263]
[1745264003757,0.01072647,87241.0,87240.0,0.27555263]
[1745264004652,0.01072647,87241.0,87240.0,0.32225263]
[1745264005084,0.10532,87247.0,87246.0,0.22923687]
[1745264007172,0.10732,87247.0,87246.0,0.22923687]
[1745264009352,0.002,87247.0,87246.0,0.22923687]
[1745264009555,0.002,87247.0,87246.0,0.27782892]
[1745264009755,0.002,87247.0,87246.0,0.32323687]
[1745264010289,0.01072647,87251.0,87246.0,0.32323687]
[1745264010290,1e-08,87251.0,87250.0,0.22922636]
[1745264010501,1e-08,87251.0,87250.0,0.27781799]
[1745264010718,1e-08,87256.0,87255.0,0.22921322]
[1745264010938,1e-08,87256.0,87255.0,0.27780485]
[1745264011162,1e-08,87256.0,87255.0,0.27551322]
[1745264013396,1e-08,87256.0,87255.0,0.27651322]
[1745264014611,1e-08,87256.0,87255.0,0.32421322]
[1745264015070,1e-08,87256.0,87255.0,0.85696916]
[1745264015304,0.0004218,87273.0,87255.0,0.85696916]
[1745264015305,1e-08,87289.0,87288.0,0.22912656]
[1745264015534,1e-08,87289.0,87288.0,0.4358825]
[1745264015757,1e-08,87289.0,87288.0,0.32212656]
[1745264015999,1e-08,87289.0,87288.0,0.27582656]
[1745264016224,1e-08,87289.0,87287.0,0.22912919]
[1745264016456,1e-08,87289.0,87288.0,0.00229098]
[1745264016700,1e-08,87289.0,87283.0,0.01145698]
[1745264016921,1e-08,87289.0,87288.0,0.001]
[1745264016922,0.00045877,87289.0,87288.0,0.001]
[1745264017381,0.22958271,87289.0,87288.0,0.001]
[1745264017567,0.34333865,87289.0,87288.0,0.001]
[1745264017815,0.44861865,87289.0,87288.0,0.001]
[1745264018647,0.44861865,87289.0,87287.0,0.001]
[1745264018870,0.44861865,87289.0,87287.0,0.002]
[1745264018871,0.11375594,87288.0,87287.0,0.002]
[1745264019525,0.00045877,87289.0,87288.0,0.22912656]
[1745264019526,0.00145877,87289.0,87288.0,0.22912656]
[1745264019747,0.00045877,87289.0,87288.0,0.22912656]
[1745264019970,0.001,87288.0,87286.0,0.2405863]
[1745264021089,0.10628,87288.0,87286.0,0.2405863]
[1745264021498,0.10628,87288.0,87287.0,0.0481]
[1745264021499,0.001,87288.0,87287.0,0.0481]
[1745264021709,0.10569877,87289.0,87288.0,0.22912656]
[1745264023121,0.10569877,87289.0,87287.0,0.22912842]
[1745264023348,0.01145672,87285.0,87280.0,0.24060415]
[1745264023568,0.22914642,87281.0,87276.0,0.229157]
[1745264023786,0.01145737,87280.0,87277.0,0.01145777]
[1745264023996,0.01145698,87283.0,87279.0,0.0114575]
[1745264024624,0.24059674,87283.0,87280.0,0.22914728]
[1745264025291,0.01145724,87281.0,87276.0,0.2406149]
[1745264025510,0.22915215,87279.0,87275.0,0.22915894]
[1745264025733,0.22915215,87279.0,87276.0,0.22915797]
[1745264026204,0.24060965,87279.0,87276.0,0.22915797]
[1745264026433,0.01145777,87277.0,87271.0,0.22917027]
[1745264026669,0.24061776,87276.0,87272.0,0.01145842]
[1745264026886,0.01145777,87277.0,87273.0,0.01145829]
[1745264027519,0.0114575,87279.0,87276.0,0.22915807]
[1745264027520,0.24061275,87279.0,87276.0,0.22915807]
[1745264027723,0.0114575,87279.0,87276.0,0.22915807]
[1745264028683,0.24060855,87279.0,87276.0,0.22915807]
[1745264029268,0.24061321,87277.0,87273.0,0.24062328]
[1745264029477,0.24061872,87275.0,87272.0,0.001]
[1745264030088,0.24061872,87275.0,87272.0,0.22916816]
[1745264030293,0.2406226,87274.0,87271.0,0.24062818]
[1745264030488,0.24061872,87275.0,87271.0,0.24062818]
[1745264030696,0.24061872,87275.0,87272.0,0.23016605]
[1745264030906,0.00045877,87289.0,87283.0,0.22913969]
[1745264031116,0.00045877,87289.0,87288.0,0.22912656]
[1745264031341,0.10565877,87289.0,87288.0,0.23141755]
[1745264031550,0.10565877,87289.0,87288.0,0.22912656]
[1745264032210,0.00045877,87289.0,87288.0,0.22912656]
[1745264032431,0.10565877,87289.0,87288.0,0.22912656]
[1745264033057,0.10665877,87289.0,87288.0,0.22912656]
[1745264033730,0.10765877,87289.0,87288.0,0.22912656]
[1745264035049,0.10761877,87289.0,87288.0,0.22912656]
[1745264037004,0.10761877,87289.0,87278.0,0.0451]
[1745264037202,0.34820383,87289.0,87286.0,0.22913051]
[1745264037419,0.34820383,87289.0,87285.0,0.22913436]
[1745264037630,0.01145659,87286.0,87282.0,0.22913983]
[1745264037838,0.01145659,87286.0,87283.0,0.22913915]
[1745264038051,0.01145632,87288.0,87285.0,0.2291334]
[1745264038052,0.24058407,87288.0,87285.0,0.2291334]
[1745264038269,0.10561877,87289.0,87288.0,0.22912656]
[1745264038695,0.10561877,87289.0,87287.0,0.22912869]
[1745264039111,0.3347434,87289.0,87287.0,0.22912869]
[1745264039324,0.001,87288.0,87287.0,0.22912869]
[1745264039568,0.001,87288.0,87286.0,0.22913158]
[1745264039750,0.34719959,87289.0,87286.0,0.22913158]
[1745264039921,0.34819959,87289.0,87286.0,0.22913158]
[1745264040145,0.33774286,87289.0,87287.0,0.22912869]
[1745264040519,0.10861877,87289.0,87286.0,0.22913169]
[1745264040765,0.10861877,87289.0,87288.0,0.22912656]
[1745264041108,0.10661877,87289.0,87288.0,0.22912656]
[1745264041356,0.10661877,87289.0,87285.0,0.22913263]
[1745264041357,0.10561877,87289.0,87285.0,0.22913263]
[1745264041552,0.24258345,87288.0,87286.0,0.22913103]
[1745264042034,0.24158345,87288.0,87286.0,0.22913103]
[1745264042242,0.24058345,87288.0,87286.0,0.22913103]
[1745264042448,0.240592,87285.0,87282.0,0.22914211]
[1745264042584,0.2405931,87286.0,87283.0,0.22913855]
[1745264042784,0.24058608,87287.0,87284.0,0.2291366]
[1745264043039,0.24058608,87287.0,87285.0,0.22913424]
[1745264043385,0.24058608,87287.0,87284.0,0.2291366]
[1745264043596,0.22913181,87286.0,87284.0,0.2291366]
[1745264043969,0.01145672,87285.0,87254.0,0.0114047]
[1745264043972,0.01145777,87277.0,87270.0,0.24063251]
[1745264044172,0.24061597,87276.0,87270.0,0.2291715]
[1745264044347,0.24062424,87273.0,87268.0,0.01145895]
[1745264044547,0.24063215,87271.0,87266.0,0.01145921]
[1745264044759,0.24063215,87271.0,87261.0,0.01145987]
[1745264044760,0.01145961,87263.0,87260.0,0.10956]
[1745264044967,0.01145961,87263.0,87234.0,0.0924647]
[1745264044968,0.01146,87260.0,87254.0,0.06056079]
[1745264045174,0.01146092,87253.0,87249.0,0.01146144]
[1745264045407,0.01146066,87255.0,87253.0,0.22921722]
[1745264045599,0.01146105,87252.0,87249.0,0.22922705]
[1745264045889,0.01146092,87253.0,87249.0,0.24068849]
[1745264046117,0.01146092,87253.0,87248.0,0.01146158]
[1745264046118,0.22921915,87253.0,87248.0,0.01146158]
[1745264046320,0.24068461,87252.0,87249.0,0.001]
[1745264046570,0.22922373,87251.0,87249.0,0.001]
[1745264046763,0.22922636,87250.0,87249.0,0.001]
[1745264047002,0.3629823,87250.0,87249.0,0.001]
[1745264047216,0.7521823,87250.0,87249.0,0.001]
[1745264047431,0.7521823,87250.0,87248.0,1e-08]
[1745264047432,0.40164085,87249.0,87248.0,1e-08]
[1745264047655,0.40164085,87249.0,87241.0,1e-08]
[1745264047656,0.58378823,87242.0,87241.0,1e-08]
[1745264047864,1.27344417,87242.0,87241.0,1e-08]
[1745264048073,1.27344417,87242.0,87241.0,4.67e-05]
[1745264048391,0.22929994,87222.0,87216.0,0.000844]
[1745264048592,0.60825588,87222.0,87221.0,0.00213678]
[1745264049222,0.94825588,87222.0,87221.0,0.00213678]
[1745264050074,0.95983872,87222.0,87221.0,0.00213678]
[1745264050976,0.96083872,87222.0,87221.0,0.00213678]
[1745264053025,0.94929588,87222.0,87221.0,0.00213678]
[1745264053260,0.44624,87222.0,87221.0,0.00213678]
[1745264053853,0.44524,87222.0,87221.0,0.00213678]
[1745264054575,0.57899594,87222.0,87221.0,0.00213678]
[1745264054781,0.57899594,87222.0,87221.0,0.00313678]
[1745264055325,0.57899594,87222.0,87221.0,0.00213678]
[1745264055531,0.57899594,87222.0,87221.0,0.00313678]
[1745264057409,0.57899594,87222.0,87221.0,0.00213678]
[1745264057614,0.47375594,87222.0,87221.0,0.00213678]
[1745264057787,0.57999594,87222.0,87221.0,0.00213678]
[1745264058017,0.57991594,87222.0,87221.0,0.00213678]
[1745264058222,0.57891594,87222.0,87221.0,0.00213678]
[1745264058400,0.47375594,87222.0,87221.0,0.00213678]
[1745264058558,0.57891594,87222.0,87221.0,0.00213678]
[1745264059378,0.47973732,87222.0,87221.0,0.00213678]
[1745264059543,0.58489732,87222.0,87221.0,0.00213678]
[1745264060334,0.81419726,87222.0,87221.0,0.00213678]
[1745264060532,0.81519726,87222.0,87221.0,0.00213678]
[1745264060995,0.81419726,87222.0,87221.0,0.00213678]
[1745264061637,0.81519726,87222.0,87221.0,0.00213678]
[1745264061969,0.81419726,87222.0,87221.0,0.00213678]
[1745264062170,0.81519726,87222.0,87221.0,0.00213678]
[1745264062376,0.71003726,87222.0,87221.0,0.00213678]
[1745264062759,0.24589732,87222.0,87221.0,0.23143935]
[1745264062976,0.12616,87222.0,87221.0,0.23143935]
[1745264063187,0.001,87222.0,87221.0,0.23143935]
[1745264063410,0.001,87222.0,87221.0,0.2337321]
[1745264063646,0.10516,87231.0,87230.0,0.22927891]
[1745264063859,0.11516,87231.0,87230.0,0.22927891]
[1745264064069,0.11516,87231.0,87230.0,0.22923891]
[1745264065123,0.1152,87231.0,87230.0,0.22923891]
[1745264065558,0.001,87250.0,87230.0,0.22923891]
[1745264065764,0.001,87250.0,87249.0,0.22922898]
[1745264065972,0.12475594,87250.0,87249.0,0.22922898]
[1745264066174,0.1162,87250.0,87249.0,0.22922898]
[1745264066764,0.011,87250.0,87249.0,0.22922898]
[1745264067011,0.11616,87250.0,87249.0,0.22936576]
[1745264067237,0.11616,87250.0,87249.0,0.23165793]
[1745264067238,0.001,87250.0,87249.0,0.23165793]
[1745264067653,0.001,87250.0,87249.0,0.23265793]
[1745264067857,0.10420002,87263.0,87262.0,0.22919483]
[1745264068517,0.24058019,87289.0,87279.0,0.0114575]
[1745264068518,0.0114562,87289.0,87279.0,0.0114575]
[1745264068717,0.35145645,87287.0,87284.0,0.22913509]
[1745264068951,0.35145645,87287.0,87285.0,0.22913315]
[1745264068952,0.01,87287.0,87285.0,0.22913315]
[1745264069151,0.35,87287.0,87285.0,0.22913315]
[1745264069938,0.01045887,87287.0,87285.0,0.22913315]
[1745264070171,0.35045887,87287.0,87285.0,0.22913315]
[1745264070796,0.35049887,87287.0,87285.0,0.2291331]
[1745264070975,0.35049887,87287.0,87281.0,0.22914494]
[1745264070976,0.01145659,87286.0,87281.0,0.22914494]
[1745264071211,0.01145659,87286.0,87276.0,0.22915632]
[1745264071212,0.01145724,87281.0,87276.0,0.22915632]
[1745264071358,0.36145724,87281.0,87276.0,0.22915632]
[1745264071553,0.01145764,87278.0,87267.0,0.22917908]
[1745264071715,0.02145764,87278.0,87273.0,0.22916546]
[1745264072417,0.02145764,87278.0,87276.0,0.001]
[1745264072654,0.01,87278.0,87276.0,0.001]
[1745264073129,0.23915395,87278.0,87276.0,0.001]
[1745264073769,0.01,87278.0,87276.0,0.001]
[1745264073978,0.01,87278.0,87276.0,0.23015692]
[1745264074184,0.10516,87277.0,87276.0,0.23015692]
[1745264074416,0.11516,87277.0,87276.0,0.22915692]
[1745264075032,0.11516,87277.0,87276.0,0.23015692]
[1745264075634,0.11516,87277.0,87276.0,0.22915692]
[1745264076043,0.11516,87277.0,87276.0,0.23015692]
[1745264076239,0.11516,87277.0,87276.0,0.001]
[1745264076909,0.11516,87277.0,87276.0,0.002]
[1745264077275,0.11516,87277.0,87276.0,0.001]
[1745264077485,0.22895594,87277.0,87276.0,0.002]
[1745264078280,0.22895594,87277.0,87276.0,0.001]
[1745264078484,0.22895594,87277.0,87275.0,0.22916069]
[1745264078697,0.11375594,87276.0,87275.0,0.22916069]
[1745264078886,0.12375594,87276.0,87275.0,0.22916069]
[1745264079675,0.01,87276.0,87275.0,0.22916069]
[1745264081955,4e-05,87277.0,87276.0,0.22915807]
[1745264083492,4e-05,87277.0,87276.0,0.23144948]
[1745264083691,4e-05,87277.0,87276.0,0.23015807]
[1745264084071,4e-05,87277.0,87276.0,0.23344936]
[1745264084297,4e-05,87277.0,87276.0,0.23115807]
[1745264084447,4e-05,87277.0,87276.0,0.22915807]
[1745264084662,4e-05,87277.0,87276.0,0.23344936]
[1745264084867,4e-05,87277.0,87276.0,0.23544936]
[1745264087341,4e-05,87277.0,87276.0,0.23644936]
[1745264087727,4e-05,87277.0,87276.0,0.23415807]
[1745264090284,1e-08,87289.0,87286.0,0.27763181]
[1745264090530,1e-08,87289.0,87286.0,0.39138775]
[1745264092172,1e-08,87289.0,87286.0,0.27763181]
[1745264092942,1e-08,87289.0,87286.0,0.27963181]
[1745264093173,1e-08,87289.0,87286.0,0.28063181]
[1745264096379,1e-08,87289.0,87286.0,0.39438775]
[1745264097806,1e-08,87287.0,87286.0,0.39438775]
[1745264097958,1e-08,87287.0,87286.0,0.44368775]
[1745264100259,1e-08,87287.0,87286.0,0.86268775]
[1745264101118,1e-08,87291.0,87290.0,0.22912131]
[1745264101334,1e-08,87291.0,87290.0,0.34516774]
[1745264101548,1e-08,87291.0,87290.0,0.34287725]
[1745264101723,1e-08,87291.0,87290.0,0.7764181]
[1745264101935,0.002,87309.0,87308.0,0.32357408]
[1745264102133,0.002,87309.0,87308.0,0.85633002]
[1745264103374,0.002,87309.0,87308.0,0.87087087]
[1745264104152,0.002,87309.0,87308.0,0.87187087]
[1745264104554,0.002,87309.0,87308.0,0.87287087]
[1745264105397,0.002,87309.0,87308.0,0.85833002]
[1745264105782,0.002,87309.0,87308.0,0.85633002]
[1745264106347,0.002,87309.0,87308.0,0.85833002]
[1745264108416,0.002,87309.0,87308.0,0.87287087]
[1745264109463,0.00848,87320.0,87314.0,0.001]
[1745264109637,0.00848,87320.0,87319.0,0.24358607]
[1745264109980,0.00848,87320.0,87319.0,0.35734201]
[1745264110783,0.00848,87320.0,87319.0,0.45237879]
[1745264111187,0.00848,87320.0,87319.0,1.31741879]
[1745264112410,1e-08,87320.0,87319.0,1.31741879]
[1745264112560,1e-08,87320.0,87319.0,1.31841879]
[1745264113083,0.0049062,87331.0,87319.0,1.32041879]
[1745264113084,1e-08,87322.0,87319.0,1.32041879]
[1745264113322,0.0049062,87331.0,87328.0,0.06434085]
[1745264113524,0.0049062,87331.0,87328.0,0.8261184]
[1745264114259,0.0049062,87331.0,87330.0,0.23001637]
[1745264114465,0.0004223,87344.0,87332.0,0.58355197]
[1745264114643,0.0004223,87344.0,87332.0,0.69730791]
[1745264115443,0.0004223,87344.0,87332.0,0.69682395]
[1745264116111,0.0004223,87344.0,87338.0,0.24353624]
[1745264116318,0.0004223,87344.0,87338.0,0.45219218]
[1745264116520,0.0004223,87344.0,87338.0,0.45215218]
[1745264117259,0.0004223,87344.0,87338.0,0.45315218]
[1745264117692,0.0004223,87344.0,87338.0,0.87215218]
[1745264118059,0.0004223,87344.0,87338.0,0.87315218]
[1745264118665,0.0004223,87344.0,87338.0,0.87215218]
[1745264119081,0.00204,87339.0,87338.0,0.87215218]
[1745264119322,0.00204,87339.0,87338.0,0.87115218]
[1745264119533,0.00204,87339.0,87338.0,0.87215218]
[1745264125743,0.00204,87339.0,87338.0,0.87198881]
[1745264126308,0.00204,87339.0,87338.0,0.64879202]
[1745264126514,0.07062583,87339.0,87338.0,0.42]
[1745264126715,0.07062583,87339.0,87338.0,0.64899539]
[1745264126716,0.05934,87339.0,87338.0,0.64899539]
[1745264126918,0.01860133,87339.0,87338.0,0.64899539]
[1745264127092,0.01304,87339.0,87338.0,0.64899539]
[1745264127317,0.01304,87339.0,87338.0,0.64799539]
[1745264129199,0.01304,87339.0,87333.0,0.01145042]
[1745264129415,0.01860133,87339.0,87327.0,0.01145121]
[1745264129626,0.01145003,87336.0,87334.0,0.22900496]
[1745264129845,0.01,87336.0,87334.0,0.22900496]
[1745264130029,0.00555739,87335.0,87334.0,0.22900496]
[1745264130608,0.0114499,87337.0,87332.0,0.22901112]
[1745264130964,0.0114499,87337.0,87330.0,0.22901485]
[1745264130965,0.24045987,87333.0,87330.0,0.22901485]
[1745264131166,0.01145068,87331.0,87328.0,0.22901977]
[1745264131347,0.01,87331.0,87330.0,0.22901497]
[1745264131848,0.02145068,87331.0,87328.0,0.22902087]
[1745264132223,0.01145094,87329.0,87318.0,0.01145239]
[1745264132428,0.22902456,87327.0,87323.0,0.22903218]
[1745264132650,0.22902456,87327.0,87319.0,0.00013678]
[1745264132651,0.01145134,87326.0,87320.0,0.01145213]
[1745264132829,0.0114516,87324.0,87321.0,0.22903881]
[1745264132991,0.0214516,87324.0,87321.0,0.22903881]
[1745264133657,0.0214516,87324.0,87319.0,0.00013678]
[1745264133658,0.22903997,87321.0,87319.0,0.00013678]
[1745264133804,0.01145186,87322.0,87319.0,0.00013678]
[1745264134006,0.02145186,87322.0,87319.0,0.00013678]
[1745264134236,0.22904251,87321.0,87319.0,0.00013678]
[1745264134447,0.2290426,87320.0,87319.0,0.00013678]
[1745264134643,0.2390426,87320.0,87319.0,0.00013678]
[1745264135476,0.36432576,87320.0,87319.0,0.00013678]
[1745264135606,0.39909854,87320.0,87319.0,0.00013678]
[1745264135803,0.42572822,87320.0,87319.0,0.00013678]
[1745264136434,0.43718319,87320.0,87319.0,0.00013678]
[1745264136635,0.42572822,87320.0,87319.0,0.00013678]
[1745264137056,0.42576822,87320.0,87319.0,0.00013678]
[1745264137454,0.53072822,87320.0,87319.0,0.00013678]
[1745264138323,0.87072822,87320.0,87319.0,0.00013678]
[1745264138522,0.92756414,87320.0,87319.0,0.00013678]
[1745264138737,0.22908457,87304.0,87303.0,0.000844]
[1745264138939,0.35284051,87304.0,87303.0,0.00098053]
[1745264139144,0.37940349,87304.0,87303.0,0.00098053]
[1745264140625,0.42490349,87304.0,87303.0,0.00098053]
[1745264141161,0.76494349,87304.0,87303.0,0.00098053]
[1745264141591,0.86990349,87304.0,87303.0,0.00098053]
[1745264142175,0.87090349,87304.0,87303.0,0.00098053]
[1745264142555,0.87190349,87304.0,87303.0,0.00098053]
[1745264143629,0.59731892,87304.0,87303.0,0.00098053]
[1745264143839,0.14356298,87304.0,87303.0,0.00098053]
[1745264144048,0.14356298,87304.0,87303.0,0.23006773]
[1745264144478,0.117,87304.0,87303.0,0.23006773]
[1745264144759,0.14528108,87304.0,87303.0,0.23006773]
[1745264145104,0.116,87304.0,87303.0,0.23006773]
[1745264145874,0.14217161,87304.0,87303.0,0.23106773]
[1745264147721,0.116,87304.0,87303.0,0.23106773]